[Event "Titled Tuesday Blitz May 10 Early 2022"]
[White "Ronka, Erik"]
[Black "Sharbaf, Mohsen"]
[WhiteFideId "505080"]
[BlackFideId "12501808"]
[WhiteElo "2264"]
[BlackElo "2187"]
[Result "1-0"]
[Round "03"]
[TimeControl "180+1"]
[Date "2022.05.11"]
[WhiteClock "0:00:14"]
[BlackClock "0:00:07"]

1. d4 {[%clk 0:02:54]}  Nf6 {[%clk 0:02:58]} 2. Nf3 {[%clk 0:02:53]}  e6 {[%clk 0:02:58]} 3. g3 {[%clk 0:02:53]}  b6 {[%clk 0:02:58]} 4. Bg2 {[%clk 0:02:54]}  Bb7 {[%clk 0:02:59]} 5. O-O {[%clk 0:02:55]}  Be7 {[%clk 0:02:59]} 6. c4 {[%clk 0:02:55]}  O-O {[%clk 0:02:59]} 7. Nc3 {[%clk 0:02:56]}  c6 {[%clk 0:02:54]} 8. e4 {[%clk 0:02:50]}  d5 {[%clk 0:02:54]} 9. e5 {[%clk 0:02:36]}  Nfd7 {[%clk 0:02:54]} 10. cxd5 {[%clk 0:02:35]}  cxd5 {[%clk 0:02:51]} 11. h4 {[%clk 0:02:30]}  Ba6 {[%clk 0:02:51]} 12. Re1 {[%clk 0:02:29]}  Nc6 {[%clk 0:02:50]} 13. Bf1 {[%clk 0:02:23]}  Bxf1 {[%clk 0:02:49]} 14. Kxf1 {[%clk 0:02:21]}  Rc8 {[%clk 0:02:47]} 15. Bf4 {[%clk 0:02:17]}  b5 {[%clk 0:02:37]} 16. Qd3 {[%clk 0:01:41]}  b4 {[%clk 0:02:32]} 17. Nd1 {[%clk 0:01:41]}  Qb6 {[%clk 0:02:11]} 18. Ne3 {[%clk 0:01:29]}  b3 {[%clk 0:02:08]} 19. a3 {[%clk 0:01:19]}  Na5 {[%clk 0:02:05]} 20. Nd2 {[%clk 0:01:18]}  Nc4 {[%clk 0:01:42]} 21. Ndxc4 {[%clk 0:01:14]}  dxc4 {[%clk 0:01:42]} 22. Qd2 {[%clk 0:01:07]}  Qb5 {[%clk 0:01:37]} 23. Kg1 {[%clk 0:01:04]}  Nb6 {[%clk 0:01:36]} 24. Rac1 {[%clk 0:00:52]}  Nd5 {[%clk 0:01:31]} 25. Nxd5 {[%clk 0:00:44]}  Qxd5 {[%clk 0:01:21]} 26. Rc3 {[%clk 0:00:43]}  Rfd8 {[%clk 0:01:11]} 27. Be3 {[%clk 0:00:44]}  Rc6 {[%clk 0:01:03]} 28. Qe2 {[%clk 0:00:43]}  Rdc8 {[%clk 0:01:03]} 29. Rec1 {[%clk 0:00:43]}  Bd8 {[%clk 0:01:01]} 30. Qg4 {[%clk 0:00:25]}  Ba5 {[%clk 0:01:01]} 31. Bh6 {[%clk 0:00:25]}  g6 {[%clk 0:00:57]} 32. Qf4 {[%clk 0:00:21]}  Qd8 {[%clk 0:00:53]} 33. Rf3 {[%clk 0:00:19]}  Qe7 {[%clk 0:00:48]} 34. Bg5 {[%clk 0:00:19]}  Qf8 {[%clk 0:00:47]} 35. h5 {[%clk 0:00:13]}  Bd8 {[%clk 0:00:43]} 36. h6 {[%clk 0:00:10]}  Bxg5 {[%clk 0:00:41]} 37. Qxg5 {[%clk 0:00:11]}  Qd8 {[%clk 0:00:41]} 38. Qf4 {[%clk 0:00:11]}  R8c7 {[%clk 0:00:37]} 39. Rfc3 {[%clk 0:00:11]}  Qf8 {[%clk 0:00:31]} 40. Kg2 {[%clk 0:00:09]}  Qe7 {[%clk 0:00:29]} 41. g4 {[%clk 0:00:09]}  Kf8 {[%clk 0:00:23]} 42. g5 {[%clk 0:00:09]}  Ke8 {[%clk 0:00:23]} 43. Kg3 {[%clk 0:00:09]}  Kd7 {[%clk 0:00:23]} 44. Qd2 {[%clk 0:00:09]}  Kc8 {[%clk 0:00:22]} 45. f4 {[%clk 0:00:09]}  Qd7 {[%clk 0:00:22]} 46. Qe3 {[%clk 0:00:08]}  Qd5 {[%clk 0:00:22]} 47. Kf2 {[%clk 0:00:07]}  a5 {[%clk 0:00:22]} 48. Rd1 {[%clk 0:00:07]}  a4 {[%clk 0:00:22]} 49. Qf3 {[%clk 0:00:07]}  Kb7 {[%clk 0:00:20]} 50. Qxd5 {[%clk 0:00:07]}  exd5 {[%clk 0:00:21]} 51. Ke3 {[%clk 0:00:08]}  Kb6 {[%clk 0:00:21]} 52. Rf1 {[%clk 0:00:09]}  Kb5 {[%clk 0:00:21]} 53. f5 {[%clk 0:00:10]}  gxf5 {[%clk 0:00:21]} 54. Rxf5 {[%clk 0:00:10]}  Rg6 {[%clk 0:00:21]} 55. Kf4 {[%clk 0:00:11]}  Kc6 {[%clk 0:00:19]} 56. Rf6+ {[%clk 0:00:11]}  Rxf6+ {[%clk 0:00:18]} 57. gxf6 {[%clk 0:00:12]}  Rc8 {[%clk 0:00:18]} 58. Kf5 {[%clk 0:00:11]}  Rg8 {[%clk 0:00:18]} 59. e6 {[%clk 0:00:12]}  fxe6+ {[%clk 0:00:19]} 60. Kxe6 {[%clk 0:00:13]}  Rg4 {[%clk 0:00:19]} 61. f7 {[%clk 0:00:13]}  Re4+ {[%clk 0:00:19]} 62. Kf6 {[%clk 0:00:13]}  Rf4+ {[%clk 0:00:19]} 63. Kg7 {[%clk 0:00:14]}  Rxd4 {[%clk 0:00:07]} 64. f8=Q {[%clk 0:00:14]}  Rg4+ {[%clk 0:00:06]} 65. Kxh7 {[%clk 0:00:14]}  d4 {[%clk 0:00:07]} 66. Qf6+ {[%clk 0:00:13]}  Kd5 {[%clk 0:00:07]} 67. Qf5+ {[%clk 0:00:14]} 1-0


[Site "https://www.chess.com"]

[Event "Titled Tuesday Blitz May 10 Early 2022"]
[White "Roux, Baptiste"]
[Black "Soucek, Petr"]
[WhiteFideId "36017450"]
[BlackFideId "23715170"]
[WhiteElo "1935"]
[BlackElo "1979"]
[Result "0-1"]
[Round "03"]
[TimeControl "180+1"]
[Date "2022.05.11"]
[WhiteClock "0:01:30"]
[BlackClock "0:00:52"]

1. d4 {[%clk 0:02:59]}  Nf6 {[%clk 0:02:57]} 2. Bf4 {[%clk 0:02:57]}  d6 {[%clk 0:02:55]} 3. e3 {[%clk 0:02:55]}  g6 {[%clk 0:02:55]} 4. Nf3 {[%clk 0:02:54]}  Bg7 {[%clk 0:02:56]} 5. Bd3 {[%clk 0:02:54]}  O-O {[%clk 0:02:57]} 6. O-O {[%clk 0:02:54]}  Nbd7 {[%clk 0:02:57]} 7. Nbd2 {[%clk 0:02:55]}  Re8 {[%clk 0:02:56]} 8. Bg3 {[%clk 0:02:51]}  Nh5 {[%clk 0:02:56]} 9. c3 {[%clk 0:02:49]}  Nxg3 {[%clk 0:02:56]} 10. hxg3 {[%clk 0:02:49]}  e5 {[%clk 0:02:56]} 11. Rc1 {[%clk 0:02:35]}  c6 {[%clk 0:02:43]} 12. c4 {[%clk 0:02:16]}  a5 {[%clk 0:02:35]} 13. Qc2 {[%clk 0:02:09]}  Qc7 {[%clk 0:02:23]} 14. Rfd1 {[%clk 0:02:07]}  exd4 {[%clk 0:01:49]} 15. exd4 {[%clk 0:02:06]}  c5 {[%clk 0:01:49]} 16. dxc5 {[%clk 0:02:00]}  Nxc5 {[%clk 0:01:49]} 17. Nb3 {[%clk 0:01:56]}  Nxd3 {[%clk 0:01:44]} 18. Qxd3 {[%clk 0:01:56]}  Bf5 {[%clk 0:01:42]} 19. Qxd6 {[%clk 0:01:55]}  Qxd6 {[%clk 0:01:43]} 20. Rxd6 {[%clk 0:01:55]}  Bxb2 {[%clk 0:01:43]} 21. Rcd1 {[%clk 0:01:55]}  Rec8 {[%clk 0:01:09]} 22. Nc5 {[%clk 0:01:41]}  Rxc5 {[%clk 0:01:05]} 23. Rb6 {[%clk 0:01:33]}  Bc3 {[%clk 0:00:53]} 24. Rxb7 {[%clk 0:01:32]}  Rxc4 {[%clk 0:00:53]} 25. Rdd7 {[%clk 0:01:30]}  Bxd7 {[%clk 0:00:52]} 0-1


[Site "https://www.chess.com"]

[Event "Titled Tuesday Blitz May 10 Early 2022"]
[White "Sadhwani, Raunak"]
[Black "FGHSMN"]
[WhiteFideId "35093487"]
[WhiteElo "2616"]
[BlackElo "2762"]
[Result "1-0"]
[Round "03"]
[TimeControl "180+1"]
[Date "2022.05.10"]
[WhiteClock "0:00:11"]
[BlackClock "0:00:15"]

1. c4 {[%clk 0:03:00]}  e5 {[%clk 0:02:57]} 2. d3 {[%clk 0:03:01]}  Nc6 {[%clk 0:02:57]} 3. Nf3 {[%clk 0:03:00]}  f5 {[%clk 0:02:56]} 4. Nc3 {[%clk 0:02:58]}  Nf6 {[%clk 0:02:56]} 5. g3 {[%clk 0:02:58]}  Bb4 {[%clk 0:02:56]} 6. Bg2 {[%clk 0:02:55]}  Bxc3+ {[%clk 0:02:53]} 7. bxc3 {[%clk 0:02:56]}  d6 {[%clk 0:02:54]} 8. O-O {[%clk 0:02:56]}  O-O {[%clk 0:02:54]} 9. Rb1 {[%clk 0:02:55]}  Qe8 {[%clk 0:02:53]} 10. c5 {[%clk 0:02:49]}  d5 {[%clk 0:02:40]} 11. Qb3 {[%clk 0:02:47]}  Rb8 {[%clk 0:02:35]} 12. Bg5 {[%clk 0:02:43]}  Be6 {[%clk 0:02:35]} 13. Bxf6 {[%clk 0:02:41]}  gxf6 {[%clk 0:02:17]} 14. Nh4 {[%clk 0:02:40]}  Qd7 {[%clk 0:02:11]} 15. d4 {[%clk 0:02:29]}  e4 {[%clk 0:02:01]} 16. f3 {[%clk 0:02:11]}  Na5 {[%clk 0:01:50]} 17. Qc2 {[%clk 0:01:53]}  Nc4 {[%clk 0:01:50]} 18. Qc1 {[%clk 0:01:54]}  e3 {[%clk 0:01:43]} 19. Rd1 {[%clk 0:01:17]}  f4 {[%clk 0:01:43]} 20. Kh1 {[%clk 0:00:57]}  Kh8 {[%clk 0:01:40]} 21. Rg1 {[%clk 0:00:57]}  f5 {[%clk 0:01:36]} 22. Rb4 {[%clk 0:00:49]}  fxg3 {[%clk 0:01:33]} 23. Rxc4 {[%clk 0:00:38]}  gxh2 {[%clk 0:01:21]} 24. Kxh2 {[%clk 0:00:38]}  dxc4 {[%clk 0:01:19]} 25. Qxe3 {[%clk 0:00:39]}  Rbe8 {[%clk 0:01:17]} 26. Qe5+ {[%clk 0:00:37]}  Qg7 {[%clk 0:01:16]} 27. Qxg7+ {[%clk 0:00:37]}  Kxg7 {[%clk 0:01:16]} 28. f4 {[%clk 0:00:38]}  Kf6 {[%clk 0:01:12]} 29. Bxb7 {[%clk 0:00:37]}  Rb8 {[%clk 0:01:09]} 30. Bf3 {[%clk 0:00:35]}  Rg8 {[%clk 0:01:01]} 31. Rd1 {[%clk 0:00:32]}  Rbd8 {[%clk 0:00:41]} 32. d5 {[%clk 0:00:26]}  Bf7 {[%clk 0:00:40]} 33. Ng2 {[%clk 0:00:19]}  Rge8 {[%clk 0:00:39]} 34. Kg3 {[%clk 0:00:17]}  Rd7 {[%clk 0:00:38]} 35. Kf2 {[%clk 0:00:17]}  Rb8 {[%clk 0:00:38]} 36. Ne3 {[%clk 0:00:16]}  Rb2 {[%clk 0:00:38]} 37. Nxc4 {[%clk 0:00:15]}  Rxa2 {[%clk 0:00:39]} 38. Ne5 {[%clk 0:00:16]}  Rd8 {[%clk 0:00:39]} 39. d6 {[%clk 0:00:15]}  Be6 {[%clk 0:00:35]} 40. Nc6 {[%clk 0:00:11]}  Rd7 {[%clk 0:00:28]} 41. Ne5 {[%clk 0:00:10]}  Rd8 {[%clk 0:00:28]} 42. d7 {[%clk 0:00:11]}  Bxd7 {[%clk 0:00:17]} 43. Nxd7+ {[%clk 0:00:10]}  Ke7 {[%clk 0:00:17]} 44. c6 {[%clk 0:00:11]}  a5 {[%clk 0:00:17]} 45. Rd5 {[%clk 0:00:11]}  a4 {[%clk 0:00:17]} 46. Rxf5 {[%clk 0:00:11]}  Ra8 {[%clk 0:00:17]} 47. Re5+ {[%clk 0:00:10]}  Kd6 {[%clk 0:00:18]} 48. f5 {[%clk 0:00:11]}  a3 {[%clk 0:00:15]} 49. Re6# {[%clk 0:00:11]} 1-0


[Site "https://www.chess.com"]

[Event "Titled Tuesday Blitz May 10 Early 2022"]
[White "Sadykov, Ramil"]
[Black "Valle Maytin, Luis Enrique"]
[WhiteFideId "24113590"]
[BlackFideId "3503666"]
[WhiteElo "2280"]
[BlackElo "2281"]
[Result "1/2-1/2"]
[Round "03"]
[TimeControl "180+1"]
[Date "2022.05.11"]
[WhiteClock "0:00:05"]
[BlackClock "0:00:09"]

1. d4 {[%clk 0:03:00]}  Nf6 {[%clk 0:02:46]} 2. Nc3 {[%clk 0:02:59]}  e6 {[%clk 0:02:46]} 3. e4 {[%clk 0:02:58]}  Bb4 {[%clk 0:02:46]} 4. e5 {[%clk 0:02:58]}  Nd5 {[%clk 0:02:44]} 5. Qg4 {[%clk 0:02:58]}  Nxc3 {[%clk 0:02:38]} 6. a3 {[%clk 0:02:56]}  Bf8 {[%clk 0:02:18]} 7. bxc3 {[%clk 0:02:56]}  c5 {[%clk 0:02:19]} 8. Nf3 {[%clk 0:02:39]}  Nc6 {[%clk 0:02:14]} 9. Bd3 {[%clk 0:02:36]}  b6 {[%clk 0:02:14]} 10. O-O {[%clk 0:02:18]}  Qc7 {[%clk 0:02:13]} 11. h4 {[%clk 0:02:12]}  Bb7 {[%clk 0:01:59]} 12. h5 {[%clk 0:02:12]}  h6 {[%clk 0:01:56]} 13. Qf4 {[%clk 0:01:44]}  Ne7 {[%clk 0:01:45]} 14. c4 {[%clk 0:01:38]}  cxd4 {[%clk 0:01:16]} 15. Nxd4 {[%clk 0:01:39]}  Nc6 {[%clk 0:01:15]} 16. Nb5 {[%clk 0:01:37]}  Qxe5 {[%clk 0:01:13]} 17. Nc7+ {[%clk 0:01:31]}  Kd8 {[%clk 0:01:12]} 18. Nxa8 {[%clk 0:01:21]}  Qxf4 {[%clk 0:01:11]} 19. Bxf4 {[%clk 0:01:19]}  Bxa8 {[%clk 0:01:11]} 20. Be4 {[%clk 0:01:11]}  Bc5 {[%clk 0:01:10]} 21. Rfd1 {[%clk 0:01:08]}  Ke7 {[%clk 0:01:10]} 22. a4 {[%clk 0:00:54]}  Na5 {[%clk 0:01:04]} 23. Bxa8 {[%clk 0:00:45]}  Rxa8 {[%clk 0:01:04]} 24. Rd3 {[%clk 0:00:43]}  d6 {[%clk 0:00:54]} 25. Rg3 {[%clk 0:00:39]}  Kf8 {[%clk 0:00:48]} 26. Be3 {[%clk 0:00:34]}  Bxe3 {[%clk 0:00:42]} 27. Rxe3 {[%clk 0:00:35]}  Nxc4 {[%clk 0:00:42]} 28. Rc3 {[%clk 0:00:34]}  d5 {[%clk 0:00:41]} 29. g4 {[%clk 0:00:33]}  f6 {[%clk 0:00:36]} 30. Kg2 {[%clk 0:00:33]}  Kf7 {[%clk 0:00:36]} 31. Rb1 {[%clk 0:00:27]}  Ke7 {[%clk 0:00:34]} 32. a5 {[%clk 0:00:25]}  bxa5 {[%clk 0:00:26]} 33. Rb7+ {[%clk 0:00:25]}  Kf8 {[%clk 0:00:26]} 34. Rc7 {[%clk 0:00:18]}  Rb8 {[%clk 0:00:21]} 35. Rxa7 {[%clk 0:00:18]}  Rb4 {[%clk 0:00:21]} 36. Rb3 {[%clk 0:00:18]}  Nd2 {[%clk 0:00:14]} 37. Rxb4 {[%clk 0:00:15]}  axb4 {[%clk 0:00:15]} 38. Rb7 {[%clk 0:00:16]}  Ne4 {[%clk 0:00:12]} 39. Rxb4 {[%clk 0:00:14]}  e5 {[%clk 0:00:11]} 40. f3 {[%clk 0:00:13]}  Nd6 {[%clk 0:00:10]} 41. Ra4 {[%clk 0:00:10]}  Kf7 {[%clk 0:00:09]} 42. Ra7+ {[%clk 0:00:10]}  Kf8 {[%clk 0:00:10]} 43. Rd7 {[%clk 0:00:08]}  Nc4 {[%clk 0:00:08]} 44. Kf2 {[%clk 0:00:09]}  d4 {[%clk 0:00:08]} 45. Ke2 {[%clk 0:00:09]}  Ne3 {[%clk 0:00:09]} 46. Kd3 {[%clk 0:00:09]}  Nd1 {[%clk 0:00:08]} 47. Ke4 {[%clk 0:00:09]}  Nc3+ {[%clk 0:00:07]} 48. Kf5 {[%clk 0:00:09]}  Ne2 {[%clk 0:00:07]} 49. Kg6 {[%clk 0:00:06]}  Nf4+ {[%clk 0:00:07]} 50. Kf5 {[%clk 0:00:07]}  Ne2 {[%clk 0:00:07]} 51. Rc7 {[%clk 0:00:07]}  Nf4 {[%clk 0:00:08]} 52. c4 {[%clk 0:00:05]}  dxc3 {[%clk 0:00:07]} 53. Rxc3 {[%clk 0:00:05]}  Kf7 {[%clk 0:00:07]} 54. Rc7+ {[%clk 0:00:05]}  Kf8 {[%clk 0:00:08]} 55. Ra7 {[%clk 0:00:05]}  Kg8 {[%clk 0:00:08]} 56. Ke4 {[%clk 0:00:04]}  Kf8 {[%clk 0:00:08]} 57. Kf5 {[%clk 0:00:05]}  Kg8 {[%clk 0:00:08]} 58. Ra8+ {[%clk 0:00:05]}  Kf7 {[%clk 0:00:08]} 59. Ra7+ {[%clk 0:00:05]}  Kg8 {[%clk 0:00:09]} 1/2-1/2


[Site "https://www.chess.com"]

[Event "Titled Tuesday Blitz May 10 Early 2022"]
[White "Sailer, Mike"]
[Black "Samunenkov, Ihor"]
[WhiteFideId "2012901"]
[BlackFideId "14187086"]
[WhiteElo "2109"]
[BlackElo "2409"]
[Result "0-1"]
[Round "03"]
[TimeControl "180+1"]
[Date "2022.05.11"]
[WhiteClock "0:00:02"]
[BlackClock "0:00:07"]

1. Nf3 {[%clk 0:03:00]}  d5 {[%clk 0:02:58]} 2. d4 {[%clk 0:02:59]}  Nf6 {[%clk 0:02:56]} 3. Bf4 {[%clk 0:02:58]}  e6 {[%clk 0:02:56]} 4. e3 {[%clk 0:02:59]}  Bd6 {[%clk 0:02:57]} 5. Bg3 {[%clk 0:02:59]}  O-O {[%clk 0:02:57]} 6. Bd3 {[%clk 0:02:59]}  c5 {[%clk 0:02:57]} 7. c3 {[%clk 0:02:59]}  Qc7 {[%clk 0:02:58]} 8. Nbd2 {[%clk 0:02:59]}  Nbd7 {[%clk 0:02:58]} 9. a3 {[%clk 0:02:58]}  b6 {[%clk 0:02:56]} 10. b4 {[%clk 0:02:58]}  e5 {[%clk 0:02:48]} 11. Nxe5 {[%clk 0:02:51]}  Nxe5 {[%clk 0:02:49]} 12. dxe5 {[%clk 0:02:51]}  Bxe5 {[%clk 0:02:49]} 13. Qc2 {[%clk 0:02:45]}  Bb7 {[%clk 0:02:33]} 14. bxc5 {[%clk 0:02:25]}  bxc5 {[%clk 0:02:30]} 15. Rb1 {[%clk 0:02:16]}  Rfe8 {[%clk 0:02:26]} 16. O-O {[%clk 0:02:03]}  Bxg3 {[%clk 0:01:46]} 17. hxg3 {[%clk 0:02:02]}  g6 {[%clk 0:01:45]} 18. c4 {[%clk 0:01:37]}  Rad8 {[%clk 0:01:21]} 19. cxd5 {[%clk 0:01:33]}  Bxd5 {[%clk 0:01:21]} 20. Bc4 {[%clk 0:01:22]}  Qe5 {[%clk 0:01:13]} 21. Bxd5 {[%clk 0:01:12]}  Qxd5 {[%clk 0:01:09]} 22. Nf3 {[%clk 0:01:11]}  Ne4 {[%clk 0:01:02]} 23. Rfd1 {[%clk 0:01:07]}  Qf5 {[%clk 0:00:59]} 24. Rxd8 {[%clk 0:01:01]}  Rxd8 {[%clk 0:01:00]} 25. Rd1 {[%clk 0:00:48]}  Rxd1+ {[%clk 0:00:46]} 26. Qxd1 {[%clk 0:00:48]}  Qf6 {[%clk 0:00:45]} 27. Qb1 {[%clk 0:00:37]}  Qe7 {[%clk 0:00:26]} 28. Qb8+ {[%clk 0:00:29]}  Kg7 {[%clk 0:00:26]} 29. Qe5+ {[%clk 0:00:29]}  Qxe5 {[%clk 0:00:26]} 30. Nxe5 {[%clk 0:00:30]}  Kf6 {[%clk 0:00:23]} 31. Nc4 {[%clk 0:00:28]}  Ke6 {[%clk 0:00:23]} 32. Kf1 {[%clk 0:00:23]}  Kd5 {[%clk 0:00:23]} 33. Nb2 {[%clk 0:00:23]}  c4 {[%clk 0:00:22]} 34. Ke2 {[%clk 0:00:23]}  c3 {[%clk 0:00:22]} 35. Nd3 {[%clk 0:00:24]}  Kc4 {[%clk 0:00:21]} 36. Nc1 {[%clk 0:00:23]}  c2 {[%clk 0:00:18]} 37. f3 {[%clk 0:00:20]}  Nxg3+ {[%clk 0:00:18]} 38. Kd2 {[%clk 0:00:21]}  Nf1+ {[%clk 0:00:16]} 39. Kxc2 {[%clk 0:00:20]}  Nxe3+ {[%clk 0:00:16]} 40. Kd2 {[%clk 0:00:20]}  Nxg2 {[%clk 0:00:17]} 41. Nd3 {[%clk 0:00:16]}  Kd4 {[%clk 0:00:15]} 42. Nb4 {[%clk 0:00:15]}  Kc5 {[%clk 0:00:05]} 43. Nd3+ {[%clk 0:00:13]}  Kd6 {[%clk 0:00:05]} 44. Ke2 {[%clk 0:00:08]}  h5 {[%clk 0:00:05]} 45. Kf2 {[%clk 0:00:08]}  Nh4 {[%clk 0:00:06]} 46. Kg3 {[%clk 0:00:09]}  Nf5+ {[%clk 0:00:06]} 47. Kf4 {[%clk 0:00:10]}  f6 {[%clk 0:00:07]} 48. Nf2 {[%clk 0:00:06]}  Ke6 {[%clk 0:00:05]} 49. Ne4 {[%clk 0:00:06]}  g5+ {[%clk 0:00:06]} 50. Nxg5+ {[%clk 0:00:01]}  fxg5+ {[%clk 0:00:06]} 51. Kxg5 {[%clk 0:00:02]}  h4 {[%clk 0:00:07]} 0-1


[Site "https://www.chess.com"]

[Event "Titled Tuesday Blitz May 10 Early 2022"]
[White "Sapunov, Evgeny"]
[Black "Yurtseven, Melih"]
[WhiteFideId "4126661"]
[BlackFideId "6312160"]
[WhiteElo "2470"]
[BlackElo "2160"]
[Result "1-0"]
[Round "03"]
[TimeControl "180+1"]
[Date "2022.05.11"]
[WhiteClock "0:00:09"]
[BlackClock "0:00:02"]

1. c4 {[%clk 0:02:57]}  Nf6 {[%clk 0:02:58]} 2. Nf3 {[%clk 0:02:57]}  e6 {[%clk 0:02:58]} 3. b3 {[%clk 0:02:55]}  d5 {[%clk 0:02:56]} 4. Bb2 {[%clk 0:02:54]}  c5 {[%clk 0:02:54]} 5. e3 {[%clk 0:02:54]}  Nc6 {[%clk 0:02:53]} 6. cxd5 {[%clk 0:02:55]}  exd5 {[%clk 0:02:52]} 7. Bb5 {[%clk 0:02:55]}  Bd6 {[%clk 0:02:47]} 8. h3 {[%clk 0:02:54]}  O-O {[%clk 0:02:46]} 9. O-O {[%clk 0:02:54]}  a6 {[%clk 0:02:28]} 10. Bxc6 {[%clk 0:02:53]}  bxc6 {[%clk 0:02:28]} 11. d3 {[%clk 0:02:53]}  a5 {[%clk 0:02:28]} 12. Nc3 {[%clk 0:02:48]}  Ba6 {[%clk 0:02:25]} 13. Qc2 {[%clk 0:02:45]}  Re8 {[%clk 0:02:15]} 14. Rfd1 {[%clk 0:02:44]}  Nd7 {[%clk 0:02:12]} 15. Na4 {[%clk 0:02:42]}  Bb5 {[%clk 0:02:09]} 16. Nc3 {[%clk 0:02:38]}  a4 {[%clk 0:01:56]} 17. bxa4 {[%clk 0:02:02]}  Ba6 {[%clk 0:01:55]} 18. Ba3 {[%clk 0:02:02]}  Qa5 {[%clk 0:01:51]} 19. Rdc1 {[%clk 0:01:52]}  Ne5 {[%clk 0:01:19]} 20. Nxe5 {[%clk 0:01:32]}  Bxe5 {[%clk 0:01:20]} 21. Rab1 {[%clk 0:01:30]}  Reb8 {[%clk 0:01:17]} 22. Rb3 {[%clk 0:00:47]}  c4 {[%clk 0:00:56]} 23. dxc4 {[%clk 0:00:47]}  Bxc4 {[%clk 0:00:55]} 24. Rxb8+ {[%clk 0:00:47]}  Rxb8 {[%clk 0:00:56]} 25. Ne2 {[%clk 0:00:39]}  Ra8 {[%clk 0:00:52]} 26. Nd4 {[%clk 0:00:36]}  Bxd4 {[%clk 0:00:52]} 27. exd4 {[%clk 0:00:36]}  Qxa4 {[%clk 0:00:53]} 28. Qxa4 {[%clk 0:00:35]}  Rxa4 {[%clk 0:00:54]} 29. Re1 {[%clk 0:00:29]}  h6 {[%clk 0:00:46]} 30. Bc5 {[%clk 0:00:29]}  Rxa2 {[%clk 0:00:44]} 31. Re7 {[%clk 0:00:26]}  Re2 {[%clk 0:00:39]} 32. Rxe2 {[%clk 0:00:25]}  Bxe2 {[%clk 0:00:40]} 33. f3 {[%clk 0:00:25]}  g5 {[%clk 0:00:38]} 34. Kf2 {[%clk 0:00:25]}  Bb5 {[%clk 0:00:38]} 35. g4 {[%clk 0:00:25]}  Kg7 {[%clk 0:00:38]} 36. Kg3 {[%clk 0:00:26]}  Kg6 {[%clk 0:00:36]} 37. f4 {[%clk 0:00:27]}  Bd3 {[%clk 0:00:24]} 38. f5+ {[%clk 0:00:24]}  Kg7 {[%clk 0:00:23]} 39. Be7 {[%clk 0:00:22]}  f6 {[%clk 0:00:18]} 40. h4 {[%clk 0:00:21]}  Kf7 {[%clk 0:00:13]} 41. Bc5 {[%clk 0:00:21]}  h5 {[%clk 0:00:11]} 42. hxg5 {[%clk 0:00:19]}  fxg5 {[%clk 0:00:10]} 43. gxh5 {[%clk 0:00:19]}  Bxf5 {[%clk 0:00:11]} 44. Bd6 {[%clk 0:00:18]}  Kf6 {[%clk 0:00:05]} 45. Be5+ {[%clk 0:00:16]}  Ke6 {[%clk 0:00:05]} 46. Bg7 {[%clk 0:00:12]}  Kf7 {[%clk 0:00:04]} 47. Bh6 {[%clk 0:00:10]}  Kf6 {[%clk 0:00:03]} 48. Bf8 {[%clk 0:00:11]}  Bc2 {[%clk 0:00:02]} 49. h6 {[%clk 0:00:09]}  Kg6 {[%clk 0:00:02]} 50. Bg7 {[%clk 0:00:09]}  Bd1 {[%clk 0:00:02]} 51. Kf2 {[%clk 0:00:09]}  Bh5 {[%clk 0:00:02]} 52. Kg3 {[%clk 0:00:09]} 1-0


[Site "https://www.chess.com"]

[Event "Titled Tuesday Blitz May 10 Early 2022"]
[White "Shashikant, Kutwal"]
[Black "De Arruda, Leandro Formes"]
[WhiteFideId "5006520"]
[BlackFideId "22722009"]
[WhiteElo "2321"]
[BlackElo "1852"]
[Result "1/2-1/2"]
[Round "03"]
[TimeControl "180+1"]
[Date "2022.05.11"]
[WhiteClock "0:00:08"]
[BlackClock "0:00:06"]

1. e4 {[%clk 0:03:00]}  e6 {[%clk 0:03:00]} 2. Nf3 {[%clk 0:02:59]}  d5 {[%clk 0:03:00]} 3. Nc3 {[%clk 0:02:59]}  dxe4 {[%clk 0:03:01]} 4. Nxe4 {[%clk 0:03:00]}  Nd7 {[%clk 0:03:01]} 5. d4 {[%clk 0:03:00]}  Ngf6 {[%clk 0:03:02]} 6. Nxf6+ {[%clk 0:03:00]}  Nxf6 {[%clk 0:03:03]} 7. Be3 {[%clk 0:03:01]}  Be7 {[%clk 0:03:04]} 8. Bd3 {[%clk 0:02:59]}  O-O {[%clk 0:03:05]} 9. O-O {[%clk 0:03:00]}  b6 {[%clk 0:03:06]} 10. c4 {[%clk 0:03:00]}  Bb7 {[%clk 0:03:06]} 11. Qe2 {[%clk 0:02:58]}  c5 {[%clk 0:03:06]} 12. Rfd1 {[%clk 0:02:54]}  Qc7 {[%clk 0:03:06]} 13. Rac1 {[%clk 0:02:53]}  Rad8 {[%clk 0:03:03]} 14. Bb1 {[%clk 0:02:47]}  a5 {[%clk 0:02:28]} 15. Ne5 {[%clk 0:02:44]}  a4 {[%clk 0:02:08]} 16. Bf4 {[%clk 0:02:15]}  Qc8 {[%clk 0:01:53]} 17. dxc5 {[%clk 0:01:51]}  bxc5 {[%clk 0:01:48]} 18. Bg5 {[%clk 0:01:42]}  Rxd1+ {[%clk 0:01:42]} 19. Rxd1 {[%clk 0:01:43]}  Rd8 {[%clk 0:01:41]} 20. Re1 {[%clk 0:01:41]}  Qc7 {[%clk 0:01:29]} 21. h3 {[%clk 0:01:22]}  h6 {[%clk 0:01:21]} 22. Bxf6 {[%clk 0:01:22]}  Bxf6 {[%clk 0:01:22]} 23. Ng4 {[%clk 0:01:22]}  Bg5 {[%clk 0:01:14]} 24. h4 {[%clk 0:01:13]}  Bxh4 {[%clk 0:00:57]} 25. Qc2 {[%clk 0:01:03]}  Qc6 {[%clk 0:00:39]} 26. Qh7+ {[%clk 0:00:58]}  Kf8 {[%clk 0:00:39]} 27. Be4 {[%clk 0:00:56]}  Qc7 {[%clk 0:00:31]} 28. Nxh6 {[%clk 0:00:48]}  gxh6 {[%clk 0:00:18]} 29. Qxh6+ {[%clk 0:00:48]}  Ke8 {[%clk 0:00:17]} 30. Bxb7 {[%clk 0:00:29]}  Bxf2+ {[%clk 0:00:16]} 31. Kxf2 {[%clk 0:00:30]}  Qxb7 {[%clk 0:00:16]} 32. Qh8+ {[%clk 0:00:28]}  Ke7 {[%clk 0:00:15]} 33. Qh4+ {[%clk 0:00:27]}  Ke8 {[%clk 0:00:15]} 34. Qg5 {[%clk 0:00:25]}  Qxb2+ {[%clk 0:00:13]} 35. Kg3 {[%clk 0:00:20]}  Rd3+ {[%clk 0:00:10]} 36. Kh2 {[%clk 0:00:17]}  Qd4 {[%clk 0:00:09]} 37. Rb1 {[%clk 0:00:13]}  Qd8 {[%clk 0:00:08]} 38. Qxc5 {[%clk 0:00:12]}  Qd6+ {[%clk 0:00:06]} 39. Qxd6 {[%clk 0:00:11]}  Rxd6 {[%clk 0:00:07]} 40. Rb4 {[%clk 0:00:12]}  Ra6 {[%clk 0:00:07]} 41. Kg3 {[%clk 0:00:12]}  Kd7 {[%clk 0:00:08]} 42. Kf4 {[%clk 0:00:12]}  Kc6 {[%clk 0:00:08]} 43. Rb5 {[%clk 0:00:11]}  a3 {[%clk 0:00:07]} 44. Ke5 {[%clk 0:00:11]}  Ra4 {[%clk 0:00:07]} 45. Rb3 {[%clk 0:00:07]}  Kd7 {[%clk 0:00:03]} 46. c5 {[%clk 0:00:07]}  Kc6 {[%clk 0:00:03]} 47. g3 {[%clk 0:00:06]}  Kxc5 {[%clk 0:00:03]} 48. Kf6 {[%clk 0:00:06]}  Kc4 {[%clk 0:00:04]} 49. Kxf7 {[%clk 0:00:06]}  e5 {[%clk 0:00:04]} 50. g4 {[%clk 0:00:05]}  e4 {[%clk 0:00:04]} 51. g5 {[%clk 0:00:05]}  Kd4 {[%clk 0:00:04]} 52. g6 {[%clk 0:00:05]}  Ra7+ {[%clk 0:00:04]} 53. Kf6 {[%clk 0:00:04]}  e3 {[%clk 0:00:04]} 54. g7 {[%clk 0:00:03]}  Ra8 {[%clk 0:00:04]} 55. Kf7 {[%clk 0:00:02]}  e2 {[%clk 0:00:04]} 56. Rb1 {[%clk 0:00:02]}  Kd3 {[%clk 0:00:03]} 57. g8=Q {[%clk 0:00:01]}  Rxg8 {[%clk 0:00:04]} 58. Kxg8 {[%clk 0:00:02]}  Kd2 {[%clk 0:00:04]} 59. Kg7 {[%clk 0:00:03]}  e1=Q {[%clk 0:00:04]} 60. Rxe1 {[%clk 0:00:03]}  Kxe1 {[%clk 0:00:05]} 61. Kf6 {[%clk 0:00:04]}  Kd2 {[%clk 0:00:06]} 62. Ke5 {[%clk 0:00:05]}  Kc2 {[%clk 0:00:06]} 63. Kd4 {[%clk 0:00:05]}  Kb2 {[%clk 0:00:06]} 64. Kd3 {[%clk 0:00:06]}  Kxa2 {[%clk 0:00:05]} 65. Kc2 {[%clk 0:00:07]}  Ka1 {[%clk 0:00:05]} 66. Kc1 {[%clk 0:00:07]}  a2 {[%clk 0:00:06]} 67. Kc2 {[%clk 0:00:08]} 1/2-1/2


[Site "https://www.chess.com"]